bitfinex/quotes_BTCUSD_20241120
["timestamp","ask_amount","ask_price","bid_price","bid_amount"]
[1732103640203,13.22251858,93500.0,93499.0,0.26391212]
[1732103641125,13.16349458,93500.0,93499.0,0.26391212]
[1732103641364,13.03964458,93500.0,93499.0,0.54891032]
[1732103641581,12.91769458,93500.0,93499.0,0.26391212]
[1732103641794,12.8498302,93500.0,93499.0,0.26391212]
[1732103641999,12.8103802,93500.0,93499.0,0.26391212]
[1732103642223,12.8069329,93500.0,93499.0,0.54891032]
[1732103642440,12.790956,93500.0,93499.0,0.54891032]
[1732103642659,12.7082164,93500.0,93499.0,0.26391212]
[1732103642882,12.6868264,93500.0,93499.0,0.26391212]
[1732103643096,12.5201964,93500.0,93499.0,0.26391212]
[1732103643312,12.46501873,93500.0,93499.0,0.26391212]
[1732103643793,12.40084873,93500.0,93499.0,0.26391212]
[1732103644007,12.37945873,93500.0,93499.0,0.26391212]
[1732103644221,12.35806873,93500.0,93499.0,0.26391212]
[1732103644684,12.34632964,93500.0,93499.0,0.26391212]
[1732103645370,12.30354964,93500.0,93499.0,0.26391212]
[1732103646240,12.25654964,93500.0,93499.0,0.26391212]
[1732103646922,12.21454964,93500.0,93499.0,0.26391212]
[1732103647613,12.17599963,93500.0,93499.0,0.26391212]
[1732103648294,12.12799963,93500.0,93499.0,0.26391212]
[1732103648548,12.12299963,93500.0,93499.0,0.26391212]
[1732103648766,12.09999963,93500.0,93499.0,0.26391212]
[1732103650055,12.07199963,93500.0,93499.0,0.26391212]
[1732103650727,12.04667336,93500.0,93499.0,0.26391212]
[1732103651197,12.04667336,93500.0,93499.0,0.26291212]
[1732103651403,11.54667336,93500.0,93499.0,0.26291212]
[1732103652522,11.53387336,93500.0,93499.0,0.26291212]
[1732103653088,11.48687336,93500.0,93499.0,0.26291212]
[1732103653327,11.44387336,93500.0,93499.0,0.26291212]
[1732103654885,10.82694096,93500.0,93499.0,0.33791212]
[1732103655111,10.82694096,93500.0,93499.0,0.55673562]
[1732103655112,10.48651016,93500.0,93499.0,0.55673562]
[1732103655565,9.75918305,93500.0,93499.0,0.55673562]
[1732103655781,9.74691373,93500.0,93499.0,0.55673562]
[1732103655968,9.15630439,93500.0,93499.0,0.55673562]
[1732103656211,9.07574272,93500.0,93499.0,0.55673562]
[1732103656397,8.92891872,93500.0,93499.0,0.55673562]
[1732103656599,8.86474872,93500.0,93499.0,0.55673562]
[1732103656819,8.31750291,93500.0,93499.0,0.55673562]
[1732103657243,8.2596828,93500.0,93499.0,0.55673562]
[1732103657451,8.1955128,93500.0,93499.0,0.55673562]
[1732103657666,7.55313761,93500.0,93499.0,0.55673562]
[1732103657872,7.55313761,93500.0,93499.0,0.51974902]
[1732103658086,7.01961648,93500.0,93499.0,0.36740602]
[1732103658537,6.91266648,93500.0,93499.0,1.74136702]
[1732103658745,6.33114535,93500.0,93499.0,1.11220212]
[1732103658963,6.305367,93500.0,93499.0,1.11220212]
[1732103659182,5.17446765,93500.0,93499.0,1.11220212]
[1732103659391,5.09798765,93500.0,93499.0,1.11220212]
[1732103659593,5.05520765,93500.0,93499.0,1.11220212]
[1732103659744,4.98542765,93500.0,93499.0,1.11220212]
[1732103659960,4.92242765,93500.0,93499.0,1.11220212]
[1732103660186,3.73745926,93500.0,93499.0,1.14042326]
[1732103660390,3.44659555,93500.0,93499.0,1.2031444]
[1732103660598,3.26017433,93500.0,93499.0,1.2031444]
[1732103660765,2.7052632,93500.0,93499.0,1.2031444]
[1732103660971,2.17174207,93500.0,93499.0,1.2031444]
[1732103661387,1.61683094,93500.0,93499.0,1.2031444]
[1732103661591,1.03132952,93500.0,93499.0,1.2031444]
[1732103661797,0.97055538,93500.0,93499.0,1.2031444]
[1732103662436,0.92777538,93500.0,93499.0,1.2031444]
[1732103662662,0.85636335,93500.0,93499.0,1.2031444]
[1732103662914,0.35636335,93500.0,93499.0,1.2031444]
[1732103663552,0.24943135,93500.0,93499.0,1.2031444]
[1732103664306,0.22804535,93500.0,93499.0,1.2031444]
[1732103665139,0.046,93537.0,93522.0,0.023]
[1732103665357,0.046,93537.0,93524.0,0.155077]
[1732103665562,0.046,93537.0,93524.0,0.26219212]
[1732103666188,0.046,93537.0,93536.0,0.032073]
[1732103666401,0.046,93537.0,93536.0,0.03314198]
[1732103670575,0.1238,93537.0,93536.0,0.032073]
[1732103672235,0.1218,93537.0,93536.0,0.032073]
[1732103674860,0.1238,93537.0,93536.0,0.032073]
[1732103675661,0.1218,93537.0,93536.0,0.032073]
[1732103676527,0.1218,93537.0,93536.0,0.32154534]
[1732103677734,0.1218,93537.0,93536.0,0.36891343]
[1732103678047,0.1218,93537.0,93536.0,0.132073]
[1732103678721,0.057654,93537.0,93536.0,0.032073]
[1732103678939,0.0585098,93537.0,93536.0,0.032073]
[1732103679245,0.0157458,93537.0,93536.0,0.36900792]
[1732103679471,0.0157458,93537.0,93536.0,0.132073]
[1732103679669,8e-07,93537.0,93536.0,0.132073]
[1732103679885,0.0008559,93541.0,93540.0,0.032071]
[1732103679886,7e-07,93541.0,93540.0,0.032071]
[1732103680095,7e-07,93541.0,93540.0,0.32259579]
[1732103680287,7e-07,93541.0,93540.0,0.32152696]
[1732103680490,7e-07,93541.0,93540.0,0.132071]
[1732103680699,7e-07,93541.0,93540.0,0.32260324]
[1732103680906,7e-07,93541.0,93540.0,0.132071]
[1732103681099,7e-07,93541.0,93540.0,0.32152988]
[1732103681333,7e-07,93541.0,93540.0,0.132071]
[1732103681547,7e-07,93541.0,93540.0,0.32151874]
[1732103681785,0.0506007,93541.0,93540.0,0.132071]
[1732103682005,0.0706,93540.0,93539.0,0.032072]
[1732103682241,0.17771512,93540.0,93539.0,0.032072]
[1732103682486,0.022,93526.0,93523.0,0.032077]
[1732103682721,0.25481512,93526.0,93525.0,0.0337876]
[1732103683843,0.25481512,93526.0,93517.0,0.032079]
[1732103683844,0.022,93522.0,93517.0,0.032079]
[1732103684060,0.26071512,93522.0,93514.0,0.03208]
[1732103684303,0.26071512,93522.0,93512.0,0.032081]
[1732103684304,0.26071512,93522.0,93519.0,0.032078]
[1732103684528,0.26071512,93522.0,93518.0,0.032079]
[1732103684745,0.1295,93510.0,93509.0,0.032082]
[1732103687295,0.1452,93504.0,93503.0,0.052084]
[1732103687525,0.25231512,93504.0,93503.0,0.052084]
[1732103688205,0.25231512,93504.0,93503.0,0.02]
[1732103688461,0.022,93492.0,93491.0,0.0009993]
[1732103688655,0.022,93483.0,93482.0,0.032091]
[1732103688875,0.25871512,93483.0,93482.0,0.032091]
[1732103690954,0.022,93479.0,93478.0,0.032092]
[1732103691172,0.1466,93479.0,93478.0,0.032092]
[1732103691380,0.25371512,93479.0,93478.0,0.032092]
[1732103692059,0.002,93476.0,93475.0,0.032094]
[1732103692285,0.12911512,93476.0,93475.0,0.032094]
[1732103692504,0.11911512,93476.0,93475.0,0.032094]
[1732103692723,0.01,93477.0,93476.0,0.032093]
[1732103692957,0.0804,93487.0,93479.0,0.032092]
[1732103693204,0.0804,93487.0,93486.0,0.03209]
[1732103693205,0.0904,93487.0,93486.0,0.03209]
[1732103693429,0.0924,93487.0,93486.0,0.03209]
[1732103693867,0.0924,93487.0,93470.0,0.04276067]
[1732103694079,0.002,93479.0,93478.0,0.032093]
[1732103695875,0.012,93479.0,93478.0,0.032093]
[1732103696084,0.1487,93479.0,93478.0,0.032093]
[1732103698434,0.022,93476.0,93475.0,0.032094]
[1732103698617,0.12911512,93476.0,93475.0,0.032094]
[1732103699245,0.02,93471.0,93470.0,0.032095]
[1732103699442,0.12911512,93471.0,93470.0,0.032095]
[1732103700129,0.20721512,93471.0,93470.0,0.032095]
[1732103700292,0.0708,93470.0,93469.0,0.0338086]
[1732103700533,0.17791512,93470.0,93469.0,0.0017126]
[1732103700911,0.17791512,93470.0,93469.0,0.0338086]
[1732103702327,0.0608,93470.0,93469.0,0.0338086]
[1732103702546,0.002,93470.0,93469.0,0.0338086]
[1732103702993,0.002,93471.0,93470.0,0.032095]
[1732103703429,0.002,93477.0,93470.0,0.032095]
[1732103703646,0.01,93482.0,93479.0,0.032092]
[1732103703867,0.01,93482.0,93481.0,0.032092]
[1732103704081,0.012,93482.0,93481.0,0.032092]
[1732103704638,0.01,93482.0,93481.0,0.032092]
[1732103704868,0.012,93482.0,93481.0,0.032092]
[1732103705525,0.01,93482.0,93481.0,0.032092]
[1732103705950,0.01,93482.0,93481.0,0.064184]
[1732103706205,0.0498,93501.0,93489.0,0.032089]
[1732103706206,0.002,93490.0,93489.0,0.032089]
[1732103706435,0.01,93496.0,93495.0,0.032087]
[1732103706895,0.002,93499.0,93498.0,0.032086]
[1732103707136,0.012,93499.0,93498.0,0.032086]
[1732103707360,0.12911512,93499.0,93498.0,0.032086]
[1732103707588,0.012,93499.0,93498.0,0.032086]
[1732103708043,0.002,93499.0,93498.0,0.03315547]
[1732103708272,0.002,93499.0,93498.0,0.032086]
[1732103708273,0.012,93499.0,93498.0,0.032086]
[1732103709417,0.01,93512.0,93511.0,0.032081]
[1732103709634,0.012,93512.0,93511.0,0.032081]
[1732103711309,0.012,93510.0,93509.0,0.032082]
[1732103711531,0.022,93506.0,93505.0,0.032083]
[1732103711786,0.02,93499.0,93498.0,0.1]
[1732103711994,0.02,93499.0,93468.0,0.0017114]
[1732103711995,0.1,93494.0,93468.0,0.0017114]
[1732103712197,0.09,93479.0,93478.0,0.032092]
[1732103712396,0.09,93479.0,93476.0,0.032093]
[1732103712397,0.022,93477.0,93476.0,0.032093]
[1732103712630,0.17491512,93477.0,93476.0,0.032093]
[1732103713542,0.1828804,93477.0,93476.0,0.032093]
[1732103714820,0.1728804,93477.0,93476.0,0.032093]
[1732103715046,0.1370804,93477.0,93476.0,0.032093]
[1732103715256,0.11911512,93477.0,93476.0,0.032093]
[1732103715471,0.12911512,93477.0,93476.0,0.032093]
[1732103716133,0.13708525,93477.0,93476.0,0.032093]
[1732103716591,0.12911512,93477.0,93476.0,0.032093]
[1732103717191,0.13708793,93477.0,93476.0,0.032093]
[1732103717708,0.13708914,93477.0,93476.0,0.032093]
[1732103717944,0.022,93472.0,93471.0,0.032095]
[1732103718201,0.022,93470.0,93469.0,0.0338086]
[1732103718439,0.12911512,93470.0,93469.0,0.0338086]
[1732103718868,0.16181048,93470.0,93469.0,0.0338086]
[1732103719315,0.16180838,93470.0,93469.0,0.0338086]
[1732103719565,0.14984991,93470.0,93469.0,0.0338086]
[1732103720266,0.01997492,93470.0,93469.0,0.0338086]
[1732103720903,0.012,93470.0,93469.0,0.0338086]
[1732103721105,0.002,93470.0,93469.0,0.0338086]
[1732103721337,0.012,93470.0,93469.0,0.0338086]
[1732103721583,0.0119,93470.0,93469.0,0.0338086]
[1732103722034,0.0019,93470.0,93469.0,0.0338086]
[1732103722226,0.0019,93472.0,93471.0,0.032095]
[1732103722440,0.0119,93472.0,93471.0,0.032095]
[1732103724131,0.01987122,93472.0,93471.0,0.032095]
[1732103724333,0.0119,93472.0,93471.0,0.032095]
[1732103724546,0.01987104,93472.0,93471.0,0.032095]
[1732103725008,0.13698616,93472.0,93471.0,0.032095]
[1732103725261,0.0219,93470.0,93469.0,0.0338086]
[1732103725522,0.12901512,93470.0,93469.0,0.0017126]
[1732103725740,0.1569157,93470.0,93469.0,0.0338086]
[1732103726376,0.14974031,93470.0,93469.0,0.0338086]
[1732103726587,0.13698616,93470.0,93469.0,0.0338086]
[1732103727473,0.13698616,93470.0,93469.0,0.0017126]
[1732103727934,0.21418616,93470.0,93469.0,0.0017126]
[1732103728145,0.35384798,93470.0,93469.0,0.0017126]
[1732103728390,0.39572513,93470.0,93469.0,0.0017126]
[1732103728606,0.24686198,93470.0,93469.0,0.0017126]
[1732103728822,0.23410781,93470.0,93469.0,0.0017126]
[1732103729058,0.24685726,93470.0,93469.0,0.0017126]
[1732103729258,0.24685726,93470.0,93469.0,0.0338086]
[1732103729472,0.24685726,93470.0,93469.0,0.0017126]
[1732103731220,0.35194326,93470.0,93469.0,0.0017126]
[1732103731440,0.24685726,93470.0,93469.0,0.0017126]
[1732103731716,0.35384326,93470.0,93469.0,0.0017126]
[1732103732159,0.37384326,93470.0,93469.0,0.0017126]
[1732103732380,0.37384326,93470.0,93445.0,0.033816]
[1732103732381,0.128906,93452.0,93445.0,0.001712]
[1732103732638,0.26381512,93452.0,93445.0,0.001712]
[1732103732863,0.0019,93448.0,93445.0,0.001712]
[1732103733097,0.12901512,93448.0,93445.0,0.001712]
[1732103733349,0.12901512,93448.0,93422.0,0.26934087]
[1732103733350,0.0019,93425.0,93415.0,0.0059886]
[1732103733560,0.0119,93425.0,93424.0,0.032111]
[1732103733771,0.0219,93425.0,93424.0,0.032111]
[1732103734243,0.0219,93425.0,93415.0,0.0017116]
[1732103734244,0.0119,93416.0,93415.0,0.0017116]
[1732103734466,0.0219,93416.0,93415.0,0.0338256]
[1732103734671,0.12901512,93416.0,93415.0,0.0338256]
[1732103735491,0.0119,93416.0,93415.0,0.0338256]
[1732103735925,0.0019,93426.0,93419.0,0.032113]
[1732103736133,0.01,93429.0,93419.0,0.032113]
[1732103736134,0.01,93425.0,93424.0,0.032111]
[1732103736339,0.0109,93425.0,93424.0,0.032111]
[1732103736556,0.0119,93425.0,93424.0,0.032111]
[1732103736817,0.12901512,93425.0,93424.0,0.032111]
[1732103737047,0.12401512,93425.0,93424.0,0.032111]
[1732103738136,0.12401512,93425.0,93422.0,0.042816]
[1732103738137,0.0069,93423.0,93422.0,0.042816]
[1732103738343,0.11401512,93423.0,93422.0,0.042816]
[1732103739491,0.11211512,93423.0,93422.0,0.042816]
[1732103739691,0.11401512,93423.0,93422.0,0.042816]
[1732103740716,0.0069,93418.0,93417.0,0.032114]
[1732103740937,0.11401512,93418.0,93417.0,0.032114]
[1732103741461,0.12401512,93418.0,93417.0,0.032114]
[1732103741875,0.12401512,93418.0,93412.0,0.1]
[1732103741876,0.0069,93416.0,93415.0,0.0338256]
[1732103742082,0.12401512,93416.0,93415.0,0.0017116]
[1732103744352,0.23106312,93416.0,93415.0,0.0017116]
[1732103744569,0.12401512,93416.0,93415.0,0.0017116]
[1732103744771,0.13196318,93416.0,93415.0,0.0017116]
[1732103745720,0.12401512,93416.0,93415.0,0.0017116]
[1732103745932,0.13196183,93416.0,93415.0,0.0017116]
[1732103746558,0.23900983,93416.0,93415.0,0.0017116]
[1732103746800,0.13196183,93416.0,93415.0,0.0017116]
[1732103747620,0.12401512,93416.0,93415.0,0.0017116]
[1732103749556,0.0019,93416.0,93415.0,0.0338256]
[1732103749785,0.0069,93416.0,93415.0,0.0338256]
[1732103749996,0.12401512,93416.0,93415.0,0.0017116]
[1732103751692,0.19951512,93416.0,93415.0,0.0017116]
[1732103752629,0.21938685,93416.0,93415.0,0.0017116]
[1732103753072,0.23210477,93416.0,93415.0,0.0017116]
[1732103753517,0.23157084,93416.0,93415.0,0.0017116]
[1732103753969,0.19898119,93416.0,93415.0,0.0017116]
[1732103754188,0.21885912,93416.0,93415.0,0.0017116]
[1732103754423,0.23158099,93416.0,93415.0,0.0017116]
[1732103754684,0.23021492,93416.0,93415.0,0.0017116]
[1732103754888,0.21885912,93416.0,93415.0,0.0017116]
[1732103756050,0.026244,93416.0,93415.0,0.0338256]
[1732103756285,0.02487793,93416.0,93415.0,0.0338256]
[1732103756488,0.00636607,93416.0,93415.0,0.0338256]
[1732103757837,0.00136607,93416.0,93415.0,0.0338256]
[1732103758064,0.00636607,93420.0,93417.0,0.032114]
[1732103758302,0.00636607,93420.0,93419.0,0.032113]
[1732103758520,0.005,93420.0,93419.0,0.032113]
[1732103760347,0.00636607,93420.0,93419.0,0.032113]
[1732103761274,0.0017134,93425.0,93419.0,0.032113]
[1732103761275,0.0017134,93425.0,93424.0,0.032111]
[1732103761487,0.02166831,93425.0,93424.0,0.032111]
[1732103761704,0.02666831,93425.0,93424.0,0.032111]
[1732103761927,0.0017134,93425.0,93424.0,0.032111]
[1732103762164,4e-07,93425.0,93424.0,0.03279005]
[1732103762383,4e-07,93425.0,93424.0,0.26829624]
[1732103762606,4e-07,93425.0,93424.0,0.38602612]
[1732103763284,4e-07,93425.0,93424.0,0.42019278]
[1732103764258,4e-07,93425.0,93424.0,0.06627766]
[1732103764470,0.00636647,93425.0,93424.0,0.032111]
[1732103765400,0.12348159,93425.0,93424.0,0.032111]
[1732103765605,0.12348159,93425.0,93420.0,0.032113]
[1732103765606,0.00136607,93424.0,93423.0,0.032111]
[1732103765833,0.13842066,93424.0,93423.0,0.032111]
[1732103766308,0.14342066,93424.0,93423.0,0.032111]
[1732103766504,0.11348119,93424.0,93423.0,0.032111]
[1732103766954,0.00636607,93424.0,93423.0,0.032111]
[1732103767681,0.12348119,93424.0,93423.0,0.032111]
[1732103769472,0.01636607,93419.0,93418.0,0.032113]
[1732103769705,0.12348119,93419.0,93418.0,0.032113]
[1732103771714,0.005,93419.0,93418.0,0.032113]
[1732103772133,0.00636607,93419.0,93418.0,0.032113]
[1732103772947,0.005,93419.0,93418.0,0.032113]
[1732103773861,0.00636607,93419.0,93418.0,0.032113]
[1732103774285,0.01636607,93419.0,93418.0,0.032113]
[1732103774717,0.00636607,93419.0,93418.0,0.032113]
[1732103774927,0.01636607,93419.0,93418.0,0.032113]
[1732103775199,0.00636607,93419.0,93418.0,0.032113]
[1732103775432,0.005,93421.0,93420.0,0.032113]
[1732103776522,0.00636607,93421.0,93420.0,0.032113]
[1732103778765,0.01636607,93421.0,93420.0,0.032113]
[1732103778997,0.12348119,93421.0,93420.0,0.032113]
[1732103779205,0.12348119,93421.0,93418.0,0.032113]
[1732103779206,0.005,93419.0,93418.0,0.032113]
[1732103779430,0.12348119,93419.0,93418.0,0.032113]
[1732103779644,0.01136607,93416.0,93415.0,0.0017116]
[1732103779866,0.12348119,93416.0,93415.0,0.0017116]
[1732103780546,0.12348119,93416.0,93415.0,0.0338256]
[1732103780795,0.11348119,93416.0,93415.0,0.0338256]
[1732103780997,0.12348119,93416.0,93415.0,0.0338256]
[1732103781695,0.12348119,93416.0,93415.0,0.0017116]
[1732103782161,0.12348119,93416.0,93415.0,0.0338256]
[1732103785742,0.11848119,93416.0,93415.0,0.0338256]
[1732103785966,0.12348119,93416.0,93415.0,0.0338256]
[1732103788848,0.12348119,93416.0,93415.0,0.0017116]
[1732103789073,0.17178119,93416.0,93415.0,0.0017116]
[1732103789322,0.24547067,93416.0,93415.0,0.0017116]
[1732103790407,0.24547067,93416.0,93415.0,0.0338256]
[1732103793380,0.11497067,93416.0,93415.0,0.0338256]
[1732103794382,0.11497067,93416.0,93415.0,0.0017116]
[1732103796318,0.12497067,93416.0,93415.0,0.0017116]
[1732103796547,0.11497067,93416.0,93415.0,0.0017116]
[1732103796745,0.11497067,93416.0,93415.0,0.0338256]
[1732103797859,0.11668287,93416.0,93415.0,0.0338256]
[1732103801835,0.10668287,93416.0,93415.0,0.0338256]
[1732103802037,0.11668287,93416.0,93415.0,0.0338256]
[1732103802463,0.11168287,93416.0,93415.0,0.0338256]
[1732103802665,0.11668287,93416.0,93415.0,0.0338256]
[1732103803931,0.11168287,93416.0,93415.0,0.0338256]
[1732103805230,0.11668287,93416.0,93415.0,0.0338256]
[1732103806424,0.0067122,93416.0,93415.0,0.0338256]
[1732103806629,0.0017122,93416.0,93415.0,0.43535945]
[1732103806828,0.0017122,93416.0,93415.0,0.44775231]
[1732103807055,0.0017122,93416.0,93415.0,0.2099256]
[1732103807700,0.00557625,93421.0,93417.0,0.032114]
[1732103807901,0.00557625,93421.0,93420.0,0.258113]
[1732103808599,2.5e-07,93421.0,93420.0,0.258113]
[1732103808811,4e-07,93425.0,93424.0,0.032111]
[1732103809027,4e-07,93425.0,93424.0,0.03310684]
[1732103809646,4e-07,93425.0,93424.0,0.21410684]
[1732103810517,4e-07,93425.0,93424.0,0.132111]
[1732103811103,4e-07,93425.0,93424.0,0.032111]
[1732103811751,4e-07,93425.0,93424.0,0.06653778]
[1732103811958,4e-07,93425.0,93424.0,0.032111]
[1732103815495,4e-07,93425.0,93424.0,0.132111]
[1732103815945,4e-07,93425.0,93424.0,0.36944815]
[1732103816356,4e-07,93425.0,93424.0,0.132111]
[1732103816559,4e-07,93425.0,93424.0,0.16640849]
[1732103818081,4e-07,93425.0,93424.0,0.06640849]
[1732103818939,4e-07,93425.0,93424.0,0.40367192]
[1732103820806,0.00136647,93425.0,93424.0,0.40367192]
[1732103821476,0.00136647,93425.0,93424.0,0.16640849]
[1732103821896,0.005,93433.0,93432.0,0.032108]
[1732103822338,0.005,93435.0,93434.0,0.032108]
[1732103822548,0.005,93447.0,93446.0,0.032104]
[1732103824509,0.00492714,93447.0,93446.0,0.032104]
[1732103826396,0.04042312,93456.0,93444.0,0.032104]
[1732103826622,0.04042312,93456.0,93455.0,0.032101]
[1732103828398,0.0782,93458.0,93455.0,0.032101]
[1732103828399,0.18531512,93458.0,93457.0,0.0321]
[1732103830631,0.18531512,93458.0,93434.0,0.0829]
[1732103830632,0.0485,93456.0,93429.0,0.032109]
[1732103830867,0.10711512,93455.0,93447.0,0.032103]
[1732103831073,0.10711512,93455.0,93454.0,0.032101]
[1732103831302,0.10711512,93455.0,93453.0,0.032101]
[1732103831532,0.10711512,93455.0,93452.0,0.032102]
[1732103831753,0.10711512,93455.0,93453.0,0.032101]
[1732103831981,0.10711512,93455.0,93441.0,0.1]
[1732103832196,0.10711512,93455.0,93454.0,0.032101]
[1732103832408,0.12706822,93455.0,93454.0,0.032101]
[1732103832656,0.10711512,93455.0,93453.0,0.032101]
[1732103832863,0.01995353,93454.0,93453.0,0.032101]
[1732103833089,0.12706865,93454.0,93453.0,0.032101]
[1732103833569,0.12706865,93454.0,93451.0,0.032102]
[1732103833800,0.12706865,93453.0,93451.0,0.032102]
[1732103834026,0.01995353,93452.0,93450.0,0.032102]
[1732103834255,0.12706865,93451.0,93450.0,0.032102]
[1732103834470,0.12706865,93451.0,93449.0,0.032103]
[1732103834698,0.01995353,93450.0,93449.0,0.032103]
[1732103834912,0.12706865,93450.0,93449.0,0.032103]
[1732103835545,0.20746865,93450.0,93438.0,0.032106]
[1732103835773,0.20746865,93450.0,93448.0,0.032103]
[1732103835774,0.12706865,93449.0,93448.0,0.032103]
[1732103836446,0.13506503,93449.0,93448.0,0.032103]
[1732103836670,0.29255085,93449.0,93448.0,0.032103]
[1732103836876,0.2925509,93449.0,93448.0,0.032103]
[1732103837116,0.26060233,93449.0,93448.0,0.032103]
[1732103837329,0.29259661,93449.0,93448.0,0.032103]
[1732103837535,0.25260595,93449.0,93448.0,0.032103]
[1732103837734,0.26060228,93449.0,93448.0,0.032103]
[1732103838583,0.25260595,93449.0,93448.0,0.032103]
[1732103840157,0.26060458,93449.0,93448.0,0.032103]
[1732103840381,0.23261512,93449.0,93448.0,0.032103]
[1732103840611,0.25261157,93449.0,93448.0,0.032103]
[1732103840938,0.12711157,93449.0,93448.0,0.032103]
[1732103841181,0.10711512,93449.0,93448.0,0.032103]
[1732103841396,0.000856,93455.0,93454.0,0.032101]
[1732103841592,0.13596387,93455.0,93454.0,0.032101]
[1732103841793,0.10797112,93455.0,93454.0,0.032101]
[1732103842599,0.1279647,93455.0,93454.0,0.032101]
[1732103843248,0.000856,93455.0,93454.0,0.032101]
[1732103849369,0.000856,93455.0,93454.0,0.132101]
[1732103849803,0.000856,93455.0,93454.0,0.32161355]
[1732103850216,0.000856,93455.0,93454.0,0.132101]
[1732103850419,0.000856,93455.0,93454.0,0.032101]
[1732103851265,0.000856,93455.0,93454.0,0.32171786]
[1732103851477,0.000856,93455.0,93454.0,0.132101]
[1732103852564,0.000856,93455.0,93454.0,0.032101]
[1732103852797,0.000856,93455.0,93454.0,0.36923766]
[1732103853402,0.000856,93455.0,93454.0,0.132101]
[1732103854006,0.000856,93455.0,93454.0,0.032101]
[1732103854448,0.0451,93454.0,93453.0,0.032101]
[1732103854594,0.10711512,93454.0,93453.0,0.032101]
[1732103855230,0.1244,93452.0,93445.0,0.032104]
[1732103855418,0.10711512,93451.0,93450.0,0.032102]
[1732103856479,0.010856,93455.0,93454.0,0.032101]
[1732103856480,0.000856,93455.0,93454.0,0.032101]
[1732103857615,0.000856,93455.0,93454.0,0.45132263]
[1732103858110,0.000856,93455.0,93454.0,0.261601]
[1732103858328,0.000856,93455.0,93454.0,0.132101]
[1732103858990,0.000856,93455.0,93454.0,0.032101]
[1732103859670,0.000856,93455.0,93454.0,0.03317095]
[1732103859925,0.000856,93455.0,93454.0,0.032101]
[1732103862415,0.000856,93455.0,93454.0,0.32174606]
[1732103862643,0.000856,93455.0,93454.0,0.132101]
[1732103863544,0.000856,93455.0,93454.0,0.032101]
[1732103867171,0.0769,93465.0,93464.0,0.032097]
[1732103867389,0.20399144,93465.0,93462.0,0.032098]
[1732103867627,0.10711512,93464.0,93462.0,0.032098]
[1732103867840,0.10711512,93464.0,93463.0,0.032098]
[1732103868260,0.12709634,93464.0,93463.0,0.032098]
[1732103868462,0.10711512,93464.0,93463.0,0.032098]
[1732103869100,0.12709659,93464.0,93463.0,0.032098]
[1732103871078,0.12795239,93464.0,93463.0,0.032098]
[1732103871285,0.13595121,93464.0,93463.0,0.032098]
[1732103872401,0.13596912,93464.0,93463.0,0.032098]
[1732103873912,0.13596912,93464.0,93456.0,0.0428]
[1732103874134,0.0279982,93463.0,93456.0,0.0428]
[1732103874349,0.1271145,93462.0,93461.0,0.032098]
[1732103874824,0.13511521,93462.0,93461.0,0.032098]
[1732103875049,0.10711512,93462.0,93461.0,0.032098]
[1732103875281,0.13511762,93462.0,93461.0,0.032098]
[1732103875523,0.13511762,93462.0,93454.0,0.0017116]
[1732103875524,0.01,93455.0,93454.0,0.0017116]
[1732103875755,0.22131762,93455.0,93454.0,0.0017116]
[1732103875993,0.41492367,93455.0,93454.0,0.0017116]
[1732103876230,0.31292551,93455.0,93454.0,0.0017116]
[1732103876895,0.41992851,93455.0,93454.0,0.0017116]
[1732103877177,0.47786777,93455.0,93454.0,0.0017116]
[1732103877409,0.44586222,93455.0,93454.0,0.0017116]
[1732103878694,0.4778388,93455.0,93454.0,0.0017116]
[1732103879365,0.4778388,93455.0,93454.0,0.0025676]
[1732103880031,0.49653513,93455.0,93454.0,0.0025676]
[1732103882268,0.127009,93450.0,93419.0,0.18965428]
[1732103882493,0.53020431,93450.0,93420.0,0.1]
[1732103882712,0.5675015,93450.0,93429.0,0.032109]
[1732103882924,0.58884599,93450.0,93429.0,0.032109]
[1732103883154,0.58884599,93450.0,93426.0,0.042814]
[1732103883373,0.58550365,93450.0,93427.0,0.03211]
[1732103883615,0.59084615,93450.0,93428.0,0.03211]
[1732103884057,0.58884615,93450.0,93426.0,0.074924]
[1732103884289,0.57749038,93450.0,93428.0,0.03211]
[1732103884505,0.57749038,93450.0,93426.0,0.042814]
[1732103884506,0.57014788,93450.0,93431.0,0.032109]
[1732103884724,0.57014788,93450.0,93433.0,0.042811]
[1732103884951,0.57014788,93450.0,93445.0,0.042805]
[1732103884952,0.27527561,93450.0,93445.0,0.042805]
[1732103885191,0.28527561,93450.0,93446.0,0.032103]
[1732103885419,0.28527561,93450.0,93444.0,0.042806]
[1732103885420,0.25731512,93450.0,93444.0,0.032104]
[1732103885861,0.26529115,93450.0,93444.0,0.032104]
[1732103886103,0.25731512,93450.0,93444.0,0.042806]
[1732103886327,0.25731512,93450.0,93446.0,0.032103]
[1732103886564,0.24731512,93450.0,93446.0,0.032103]
[1732103886789,0.25731512,93450.0,93444.0,0.032104]
[1732103887033,0.28523203,93450.0,93433.0,0.042811]
[1732103887268,0.28523203,93450.0,93436.0,0.032107]
[1732103887500,0.28523203,93450.0,93433.0,0.042811]
[1732103887715,0.28523203,93450.0,93436.0,0.042809]
[1732103887933,0.28523203,93450.0,93437.0,0.032107]
[1732103888148,0.28523203,93450.0,93438.0,0.032106]
[1732103888792,0.28523203,93450.0,93430.0,0.042812]
[1732103888793,0.28523203,93450.0,93436.0,0.032107]
[1732103889010,0.28523203,93450.0,93437.0,0.032107]
[1732103889227,0.39224103,93450.0,93435.0,0.032107]
[1732103889439,0.2852279,93450.0,93433.0,0.042811]
[1732103889656,0.28522625,93450.0,93436.0,0.032107]
[1732103889913,0.28522625,93450.0,93433.0,0.042811]
[1732103890143,0.40499486,93450.0,93433.0,0.042811]
[1732103890361,0.39223525,93450.0,93436.0,0.032107]
[1732103890574,0.51514366,93450.0,93427.0,0.0009872]
[1732103891024,0.54704167,93450.0,93428.0,0.03211]
[1732103891238,0.55980099,93450.0,93422.0,0.0438128]
[1732103891447,0.55980099,93450.0,93426.0,0.042814]
[1732103891669,0.55980099,93450.0,93430.0,0.032109]
[1732103891893,0.55980099,93450.0,93449.0,0.0025676]
[1732103892775,0.5550153,93450.0,93449.0,0.0025676]
[1732103893222,0.5597985,93450.0,93449.0,0.0025676]